[Event "Titled Tuesday Blitz June 28 Late 2022"]
[White "Howell, David W L"]
[Black "Gokerkan, Cem Kaan"]
[WhiteFideId "410608"]
[BlackFideId "6336760"]
[WhiteElo "2559"]
[BlackElo "2382"]
[Result "1-0"]
[Round "05"]
[TimeControl "180+1"]
[Date "2022.06.28"]
[WhiteClock "0:00:01"]
[BlackClock "0:00:06"]

1. e3 {[%clk 0:02:54]}  b6 {[%clk 0:02:57]} 2. e4 {[%clk 0:02:49]}  Bb7 {[%clk 0:02:56]} 3. Nc3 {[%clk 0:02:46]}  e6 {[%clk 0:02:49]} 4. d4 {[%clk 0:02:42]}  Bb4 {[%clk 0:02:46]} 5. Ne2 {[%clk 0:02:33]}  Bxe4 {[%clk 0:02:24]} 6. a3 {[%clk 0:02:32]}  Bxc3+ {[%clk 0:02:24]} 7. Nxc3 {[%clk 0:02:33]}  Bg6 {[%clk 0:02:23]} 8. h4 {[%clk 0:02:32]}  h6 {[%clk 0:02:07]} 9. h5 {[%clk 0:02:31]}  Bf5 {[%clk 0:02:06]} 10. g4 {[%clk 0:02:23]}  Bh7 {[%clk 0:02:06]} 11. d5 {[%clk 0:02:22]}  Nf6 {[%clk 0:01:36]} 12. g5 {[%clk 0:02:19]}  Nxd5 {[%clk 0:01:26]} 13. gxh6 {[%clk 0:02:03]}  gxh6 {[%clk 0:01:11]} 14. Nxd5 {[%clk 0:01:53]}  exd5 {[%clk 0:01:10]} 15. Rh3 {[%clk 0:01:45]}  Qf6 {[%clk 0:00:59]} 16. Rf3 {[%clk 0:01:33]}  Qh4 {[%clk 0:00:15]} 17. Qxd5 {[%clk 0:01:26]}  Nc6 {[%clk 0:00:16]} 18. Qxf7+ {[%clk 0:01:14]}  Kd8 {[%clk 0:00:17]} 19. Bxh6 {[%clk 0:00:17]}  Nd4 {[%clk 0:00:17]} 20. O-O-O {[%clk 0:00:14]}  c5 {[%clk 0:00:09]} 21. Bh3 {[%clk 0:00:10]}  Qe7 {[%clk 0:00:02]} 22. Qxe7+ {[%clk 0:00:04]}  Kxe7 {[%clk 0:00:03]} 23. Re3+ {[%clk 0:00:04]}  Kd6 {[%clk 0:00:03]} 24. Bg7 {[%clk 0:00:03]}  Rhg8 {[%clk 0:00:02]} 25. Bxd4 {[%clk 0:00:03]}  cxd4 {[%clk 0:00:03]} 26. Rxd4+ {[%clk 0:00:03]}  Kc5 {[%clk 0:00:04]} 27. Rxd7 {[%clk 0:00:03]}  Rg1+ {[%clk 0:00:05]} 28. Kd2 {[%clk 0:00:04]}  Bg8 {[%clk 0:00:02]} 29. Re5+ {[%clk 0:00:03]}  Kc6 {[%clk 0:00:01]} 30. Rd4 {[%clk 0:00:04]}  Rf8 {[%clk 0:00:01]} 31. Bd7+ {[%clk 0:00:04]}  Kc7 {[%clk 0:00:01]} 32. f4 {[%clk 0:00:05]}  Rg2+ {[%clk 0:00:01]} 33. Kc3 {[%clk 0:00:04]}  Rh2 {[%clk 0:00:01]} 34. Bb5 {[%clk 0:00:04]}  a6 {[%clk 0:00:01]} 35. Bxa6 {[%clk 0:00:05]}  Kc6 {[%clk 0:00:01]} 36. Bd3 {[%clk 0:00:05]}  b5 {[%clk 0:00:01]} 37. Be4+ {[%clk 0:00:06]}  Kb6 {[%clk 0:00:02]} 38. Bd3 {[%clk 0:00:06]}  Rc8+ {[%clk 0:00:03]} 39. Kb4 {[%clk 0:00:06]}  Ra8 {[%clk 0:00:03]} 40. Rxb5+ {[%clk 0:00:07]}  Kc7 {[%clk 0:00:04]} 41. Rc5+ {[%clk 0:00:07]}  Kb6 {[%clk 0:00:05]} 42. Rd6+ {[%clk 0:00:07]}  Kb7 {[%clk 0:00:05]} 43. Be4+ {[%clk 0:00:06]}  Ka7 {[%clk 0:00:06]} 44. Ra5+ {[%clk 0:00:06]}  Kb8 {[%clk 0:00:07]} 45. Rxa8+ {[%clk 0:00:06]}  Kc7 {[%clk 0:00:07]} 46. Rc6+ {[%clk 0:00:04]}  Kd7 {[%clk 0:00:07]} 47. Ra7+ {[%clk 0:00:04]}  Kd8 {[%clk 0:00:08]} 48. Bf5 {[%clk 0:00:04]}  Bd5 {[%clk 0:00:06]} 49. Rc8# {[%clk 0:00:01]} 1-0


[Site "https://www.chess.com"]

[Event "Titled Tuesday Blitz June 28 Late 2022"]
[White "Jaracz, Pawel"]
[Black "Deac, Bogdan-Daniel"]
[WhiteFideId "1102222"]
[BlackFideId "1226380"]
[WhiteElo "2459"]
[BlackElo "2648"]
[Result "0-1"]
[Round "05"]
[TimeControl "180+1"]
[Date "2022.06.28"]
[WhiteClock "0:00:01"]
[BlackClock "0:00:12"]

1. e4 {[%clk 0:03:00]}  c5 {[%clk 0:02:25]} 2. Nf3 {[%clk 0:02:58]}  d6 {[%clk 0:02:25]} 3. d4 {[%clk 0:02:58]}  cxd4 {[%clk 0:02:26]} 4. Nxd4 {[%clk 0:02:58]}  Nf6 {[%clk 0:02:27]} 5. Nc3 {[%clk 0:02:58]}  a6 {[%clk 0:02:27]} 6. h3 {[%clk 0:02:54]}  e5 {[%clk 0:02:26]} 7. Nde2 {[%clk 0:02:53]}  h5 {[%clk 0:02:25]} 8. Bg5 {[%clk 0:02:50]}  Be6 {[%clk 0:02:24]} 9. Bxf6 {[%clk 0:02:44]}  Qxf6 {[%clk 0:02:25]} 10. Nd5 {[%clk 0:02:44]}  Qd8 {[%clk 0:02:25]} 11. Nec3 {[%clk 0:02:39]}  g6 {[%clk 0:02:23]} 12. a4 {[%clk 0:02:38]}  Bh6 {[%clk 0:02:17]} 13. Bc4 {[%clk 0:02:38]}  O-O {[%clk 0:02:17]} 14. O-O {[%clk 0:02:37]}  Nc6 {[%clk 0:02:15]} 15. Qd3 {[%clk 0:02:30]}  Rc8 {[%clk 0:02:15]} 16. b4 {[%clk 0:02:13]}  Nxb4 {[%clk 0:02:11]} 17. Qe2 {[%clk 0:02:02]}  Nc6 {[%clk 0:01:52]} 18. Rab1 {[%clk 0:01:47]}  Na5 {[%clk 0:01:39]} 19. Ba2 {[%clk 0:01:43]}  Rc5 {[%clk 0:01:31]} 20. Rfd1 {[%clk 0:01:41]}  Kg7 {[%clk 0:01:30]} 21. Rd3 {[%clk 0:01:40]}  Qc8 {[%clk 0:01:24]} 22. Nb6 {[%clk 0:01:33]}  Qc6 {[%clk 0:01:17]} 23. Bd5 {[%clk 0:01:25]}  Qc7 {[%clk 0:01:10]} 24. Qe1 {[%clk 0:01:15]}  Nc6 {[%clk 0:01:00]} 25. Bb3 {[%clk 0:00:52]}  Nb4 {[%clk 0:00:38]} 26. Rf3 {[%clk 0:00:28]}  Qxb6 {[%clk 0:00:31]} 27. Bxe6 {[%clk 0:00:27]}  fxe6 {[%clk 0:00:32]} 28. Rxf8 {[%clk 0:00:20]}  Kxf8 {[%clk 0:00:33]} 29. Na2 {[%clk 0:00:15]}  Nxc2 {[%clk 0:00:27]} 30. Qd1 {[%clk 0:00:11]}  Qc6 {[%clk 0:00:24]} 31. a5 {[%clk 0:00:06]}  Nd4 {[%clk 0:00:19]} 32. Nb4 {[%clk 0:00:06]}  Qxe4 {[%clk 0:00:18]} 33. Nd3 {[%clk 0:00:04]}  Rb5 {[%clk 0:00:16]} 34. Ra1 {[%clk 0:00:01]}  Rb3 {[%clk 0:00:12]} 0-1


[Site "https://www.chess.com"]

[Event "Titled Tuesday Blitz June 28 Late 2022"]
[White "Khan, Taffin"]
[Black "Colpe, Malte"]
[WhiteFideId "19700024"]
[BlackFideId "24623075"]
[WhiteElo "2001"]
[BlackElo "2328"]
[Result "0-1"]
[Round "05"]
[TimeControl "180+1"]
[Date "2022.06.29"]
[WhiteClock "0:00:10"]
[BlackClock "0:00:22"]

1. e4 {[%clk 0:03:00]}  c5 {[%clk 0:02:56]} 2. Nf3 {[%clk 0:02:59]}  Nc6 {[%clk 0:02:54]} 3. c3 {[%clk 0:02:58]}  e5 {[%clk 0:02:50]} 4. Bd3 {[%clk 0:02:50]}  Nf6 {[%clk 0:02:48]} 5. Bc2 {[%clk 0:02:48]}  d5 {[%clk 0:02:47]} 6. d3 {[%clk 0:02:48]}  Be7 {[%clk 0:02:44]} 7. h3 {[%clk 0:02:47]}  O-O {[%clk 0:02:44]} 8. O-O {[%clk 0:02:47]}  d4 {[%clk 0:02:33]} 9. Nbd2 {[%clk 0:02:45]}  Ne8 {[%clk 0:02:25]} 10. Nc4 {[%clk 0:02:41]}  Qc7 {[%clk 0:02:21]} 11. Qe2 {[%clk 0:02:32]}  b5 {[%clk 0:02:18]} 12. Ncd2 {[%clk 0:02:31]}  Nd6 {[%clk 0:02:09]} 13. a4 {[%clk 0:02:28]}  b4 {[%clk 0:02:06]} 14. c4 {[%clk 0:02:27]}  Re8 {[%clk 0:01:56]} 15. b3 {[%clk 0:02:26]}  Bf8 {[%clk 0:01:56]} 16. Re1 {[%clk 0:02:23]}  g6 {[%clk 0:01:50]} 17. Nf1 {[%clk 0:02:16]}  Bg7 {[%clk 0:01:50]} 18. g4 {[%clk 0:02:02]}  f5 {[%clk 0:01:36]} 19. gxf5 {[%clk 0:01:48]}  gxf5 {[%clk 0:01:37]} 20. exf5 {[%clk 0:01:38]}  Bxf5 {[%clk 0:01:37]} 21. Ng5 {[%clk 0:01:31]}  h6 {[%clk 0:01:27]} 22. Ne4 {[%clk 0:01:29]}  Nxe4 {[%clk 0:01:24]} 23. dxe4 {[%clk 0:01:25]}  Bxh3 {[%clk 0:01:24]} 24. Qh5 {[%clk 0:01:24]}  Qd7 {[%clk 0:01:16]} 25. Ng3 {[%clk 0:01:11]}  Qg4 {[%clk 0:01:10]} 26. Qxg4 {[%clk 0:01:11]}  Bxg4 {[%clk 0:01:11]} 27. Kg2 {[%clk 0:01:02]}  d3 {[%clk 0:01:01]} 28. Bxd3 {[%clk 0:01:01]}  Nd4 {[%clk 0:01:02]} 29. Rb1 {[%clk 0:00:57]}  Bf3+ {[%clk 0:01:02]} 30. Kg1 {[%clk 0:00:55]}  Rad8 {[%clk 0:00:56]} 31. Bf1 {[%clk 0:00:52]}  Rd6 {[%clk 0:00:54]} 32. Bg2 {[%clk 0:00:42]}  Rg6 {[%clk 0:00:53]} 33. Be3 {[%clk 0:00:33]}  Rf8 {[%clk 0:00:33]} 34. Bxd4 {[%clk 0:00:20]}  exd4 {[%clk 0:00:33]} 35. Bxf3 {[%clk 0:00:20]}  Rxf3 {[%clk 0:00:34]} 36. Kg2 {[%clk 0:00:20]}  Rc3 {[%clk 0:00:32]} 37. Kf1 {[%clk 0:00:19]}  Be5 {[%clk 0:00:29]} 38. Nf5 {[%clk 0:00:18]}  Kh7 {[%clk 0:00:26]} 39. Ke2 {[%clk 0:00:14]}  Rg4 {[%clk 0:00:25]} 40. Rh1 {[%clk 0:00:13]}  Rxe4+ {[%clk 0:00:23]} 41. Kf1 {[%clk 0:00:12]}  Bf4 {[%clk 0:00:23]} 42. Rg1 {[%clk 0:00:10]}  Bg5 {[%clk 0:00:22]} 0-1


[Site "https://www.chess.com"]

[Event "Titled Tuesday Blitz June 28 Late 2022"]
[White "Khismatullin, Denis"]
[Black "Navarrete Mendez, Gonzalo Alberto"]
[WhiteFideId "4142578"]
[BlackFideId "5106850"]
[WhiteElo "2543"]
[BlackElo "2261"]
[Result "1/2-1/2"]
[Round "05"]
[TimeControl "180+1"]
[Date "2022.06.28"]
[WhiteClock "0:00:09"]
[BlackClock "0:00:17"]

1. d4 {[%clk 0:02:57]}  d5 {[%clk 0:02:58]} 2. c4 {[%clk 0:02:58]}  dxc4 {[%clk 0:02:58]} 3. e4 {[%clk 0:02:58]}  b5 {[%clk 0:02:58]} 4. a4 {[%clk 0:02:48]}  c6 {[%clk 0:02:58]} 5. b3 {[%clk 0:02:34]}  e5 {[%clk 0:02:55]} 6. Nf3 {[%clk 0:02:30]}  Nf6 {[%clk 0:02:54]} 7. axb5 {[%clk 0:02:22]}  cxb5 {[%clk 0:02:51]} 8. bxc4 {[%clk 0:02:22]}  Nxe4 {[%clk 0:02:51]} 9. Bd3 {[%clk 0:02:22]}  Bb4+ {[%clk 0:02:50]} 10. Kf1 {[%clk 0:02:22]}  Bb7 {[%clk 0:02:46]} 11. Qe2 {[%clk 0:02:16]}  f5 {[%clk 0:02:42]} 12. cxb5 {[%clk 0:02:12]}  O-O {[%clk 0:02:35]} 13. dxe5 {[%clk 0:02:13]}  Kh8 {[%clk 0:02:28]} 14. Be3 {[%clk 0:02:07]}  Nd7 {[%clk 0:02:24]} 15. Ra4 {[%clk 0:01:49]}  Bc5 {[%clk 0:02:17]} 16. Bxe4 {[%clk 0:01:37]}  fxe4 {[%clk 0:02:14]} 17. Nd4 {[%clk 0:01:22]}  Nxe5 {[%clk 0:02:10]} 18. Nd2 {[%clk 0:01:18]}  Bxd4 {[%clk 0:02:02]} 19. Rxd4 {[%clk 0:01:17]}  Qf6 {[%clk 0:01:53]} 20. h3 {[%clk 0:00:58]}  a6 {[%clk 0:01:45]} 21. Kg1 {[%clk 0:00:48]}  axb5 {[%clk 0:01:40]} 22. Kh2 {[%clk 0:00:48]}  Nd3 {[%clk 0:01:27]} 23. Nxe4 {[%clk 0:00:40]}  Qe5+ {[%clk 0:01:23]} 24. Ng3 {[%clk 0:00:40]}  Nf4 {[%clk 0:01:12]} 25. Rxf4 {[%clk 0:00:35]}  Rxf4 {[%clk 0:01:08]} 26. Bxf4 {[%clk 0:00:34]}  Qxf4 {[%clk 0:01:08]} 27. Rd1 {[%clk 0:00:32]}  Rf8 {[%clk 0:01:04]} 28. Rd7 {[%clk 0:00:26]}  Bc6 {[%clk 0:00:59]} 29. Rd2 {[%clk 0:00:19]}  h6 {[%clk 0:00:56]} 30. Kg1 {[%clk 0:00:19]}  Re8 {[%clk 0:00:55]} 31. Qd1 {[%clk 0:00:18]}  Qe5 {[%clk 0:00:51]} 32. Kh2 {[%clk 0:00:16]}  Rf8 {[%clk 0:00:45]} 33. Rd6 {[%clk 0:00:15]}  Qc5 {[%clk 0:00:39]} 34. f3 {[%clk 0:00:14]}  Bxf3 {[%clk 0:00:36]} 35. Qd4 {[%clk 0:00:07]}  Qxd4 {[%clk 0:00:33]} 36. Rxd4 {[%clk 0:00:07]}  Bc6 {[%clk 0:00:29]} 37. Rd6 {[%clk 0:00:08]}  Rc8 {[%clk 0:00:26]} 38. Nf5 {[%clk 0:00:07]}  Rc7 {[%clk 0:00:25]} 39. Nd4 {[%clk 0:00:07]}  Be4 {[%clk 0:00:19]} 40. Re6 {[%clk 0:00:06]}  Bd5 {[%clk 0:00:18]} 41. Re5 {[%clk 0:00:06]}  Bc4 {[%clk 0:00:17]} 42. Nxb5 {[%clk 0:00:06]}  Bxb5 {[%clk 0:00:16]} 43. Rxb5 {[%clk 0:00:07]}  Rf7 {[%clk 0:00:17]} 44. Rb4 {[%clk 0:00:08]}  Kh7 {[%clk 0:00:17]} 45. Rb3 {[%clk 0:00:08]}  Rf6 {[%clk 0:00:17]} 46. Rg3 {[%clk 0:00:09]} 1/2-1/2


[Site "https://www.chess.com"]

[Event "Titled Tuesday Blitz June 28 Late 2022"]
[White "Kohler, Aran"]
[Black "Chernomordik, Pavel"]
[WhiteFideId "1002856"]
[BlackFideId "2804530"]
[WhiteElo "2270"]
[BlackElo "2220"]
[Result "0-1"]
[Round "05"]
[TimeControl "180+1"]
[Date "2022.06.29"]
[WhiteClock "0:00:09"]
[BlackClock "0:00:12"]

1. d4 {[%clk 0:02:59]}  g6 {[%clk 0:03:00]} 2. c3 {[%clk 0:02:59]}  Bg7 {[%clk 0:03:00]} 3. Bg5 {[%clk 0:03:00]}  b6 {[%clk 0:02:58]} 4. Nd2 {[%clk 0:02:59]}  Bb7 {[%clk 0:02:57]} 5. e3 {[%clk 0:02:55]}  c5 {[%clk 0:02:55]} 6. Ngf3 {[%clk 0:02:54]}  d6 {[%clk 0:02:53]} 7. Bd3 {[%clk 0:02:53]}  Nd7 {[%clk 0:02:53]} 8. Be4 {[%clk 0:02:48]}  d5 {[%clk 0:02:52]} 9. Bd3 {[%clk 0:02:45]}  Ngf6 {[%clk 0:02:51]} 10. h4 {[%clk 0:02:39]}  h6 {[%clk 0:02:50]} 11. Bf4 {[%clk 0:02:35]}  Ne4 {[%clk 0:02:42]} 12. h5 {[%clk 0:02:27]}  g5 {[%clk 0:02:41]} 13. Bh2 {[%clk 0:02:27]}  e6 {[%clk 0:02:24]} 14. Qe2 {[%clk 0:02:21]}  f5 {[%clk 0:02:19]} 15. Bb5 {[%clk 0:02:06]}  a6 {[%clk 0:02:17]} 16. Bxd7+ {[%clk 0:02:05]}  Qxd7 {[%clk 0:02:16]} 17. Ne5 {[%clk 0:02:04]}  Qb5 {[%clk 0:02:10]} 18. Qxb5+ {[%clk 0:01:58]}  axb5 {[%clk 0:02:08]} 19. Ng6 {[%clk 0:01:58]}  Rg8 {[%clk 0:02:06]} 20. Nxe4 {[%clk 0:01:49]}  dxe4 {[%clk 0:01:53]} 21. Bc7 {[%clk 0:01:45]}  Ra6 {[%clk 0:01:37]} 22. O-O {[%clk 0:01:24]}  Kd7 {[%clk 0:01:35]} 23. Be5 {[%clk 0:01:20]}  Bd5 {[%clk 0:01:32]} 24. a3 {[%clk 0:01:16]}  Bxe5 {[%clk 0:01:28]} 25. Nxe5+ {[%clk 0:01:15]}  Kc7 {[%clk 0:01:28]} 26. Rac1 {[%clk 0:01:04]}  Rf8 {[%clk 0:01:16]} 27. Ng6 {[%clk 0:00:50]}  Rfa8 {[%clk 0:01:07]} 28. f3 {[%clk 0:00:48]}  exf3 {[%clk 0:01:00]} 29. gxf3 {[%clk 0:00:47]}  Kd6 {[%clk 0:00:59]} 30. Ne5 {[%clk 0:00:46]}  Rf8 {[%clk 0:00:44]} 31. e4 {[%clk 0:00:40]}  fxe4 {[%clk 0:00:38]} 32. fxe4 {[%clk 0:00:40]}  Rxf1+ {[%clk 0:00:37]} 33. Rxf1 {[%clk 0:00:41]}  Bxe4 {[%clk 0:00:38]} 34. Nf7+ {[%clk 0:00:39]}  Kd5 {[%clk 0:00:37]} 35. dxc5 {[%clk 0:00:36]}  bxc5 {[%clk 0:00:35]} 36. Nxh6 {[%clk 0:00:34]}  Kc4 {[%clk 0:00:22]} 37. Ng4 {[%clk 0:00:33]}  Kb3 {[%clk 0:00:22]} 38. Rf2 {[%clk 0:00:32]}  Bf5 {[%clk 0:00:19]} 39. Ne5 {[%clk 0:00:29]}  Ra7 {[%clk 0:00:16]} 40. Rh2 {[%clk 0:00:23]}  Rh7 {[%clk 0:00:16]} 41. h6 {[%clk 0:00:21]}  g4 {[%clk 0:00:15]} 42. Kf2 {[%clk 0:00:20]}  Kxb2 {[%clk 0:00:15]} 43. Kg3+ {[%clk 0:00:16]}  Kxc3 {[%clk 0:00:15]} 44. Nxg4 {[%clk 0:00:17]}  b4 {[%clk 0:00:13]} 45. Nf6 {[%clk 0:00:15]}  Rh8 {[%clk 0:00:12]} 46. axb4 {[%clk 0:00:14]}  cxb4 {[%clk 0:00:12]} 47. Kf4 {[%clk 0:00:09]}  b3 {[%clk 0:00:12]} 0-1


[Site "https://www.chess.com"]

[Event "Titled Tuesday Blitz June 28 Late 2022"]
[White "Lauridsen, Jesper Morch"]
[Black "Nozdrachev, Leonid"]
[WhiteFideId "1401890"]
[BlackFideId "24113433"]
[WhiteElo "2228"]
[BlackElo "2129"]
[Result "1-0"]
[Round "05"]
[TimeControl "180+1"]
[Date "2022.06.29"]
[WhiteClock "0:00:07"]
[BlackClock "0:00:12"]

1. e4 {[%clk 0:02:30]}  c6 {[%clk 0:02:56]} 2. d4 {[%clk 0:02:29]}  d5 {[%clk 0:02:56]} 3. exd5 {[%clk 0:02:30]}  cxd5 {[%clk 0:02:56]} 4. c4 {[%clk 0:02:30]}  Nf6 {[%clk 0:02:46]} 5. Nc3 {[%clk 0:02:31]}  Nc6 {[%clk 0:02:42]} 6. Nf3 {[%clk 0:02:31]}  Bg4 {[%clk 0:02:41]} 7. cxd5 {[%clk 0:02:31]}  Nxd5 {[%clk 0:02:42]} 8. Qb3 {[%clk 0:02:30]}  Bxf3 {[%clk 0:02:34]} 9. gxf3 {[%clk 0:02:30]}  Nb6 {[%clk 0:02:19]} 10. Be3 {[%clk 0:02:22]}  e6 {[%clk 0:02:18]} 11. O-O-O {[%clk 0:02:18]}  Rc8 {[%clk 0:02:09]} 12. Rg1 {[%clk 0:02:09]}  Bb4 {[%clk 0:01:54]} 13. Rxg7 {[%clk 0:01:46]}  Nd5 {[%clk 0:01:51]} 14. Kb1 {[%clk 0:01:01]}  Na5 {[%clk 0:01:49]} 15. Bb5+ {[%clk 0:00:45]}  Kf8 {[%clk 0:01:45]} 16. Qa4 {[%clk 0:00:10]}  Kxg7 {[%clk 0:01:41]} 17. Rg1+ {[%clk 0:00:10]}  Kf8 {[%clk 0:01:38]} 18. Nxd5 {[%clk 0:00:10]}  Nc6 {[%clk 0:00:44]} 19. Qxb4+ {[%clk 0:00:10]}  Ke8 {[%clk 0:00:37]} 20. Nf4 {[%clk 0:00:08]}  Qf6 {[%clk 0:00:33]} 21. Bxc6+ {[%clk 0:00:07]}  bxc6 {[%clk 0:00:28]} 22. Qb7 {[%clk 0:00:06]}  Qf5+ {[%clk 0:00:25]} 23. Ka1 {[%clk 0:00:06]}  e5 {[%clk 0:00:26]} 24. Nh5 {[%clk 0:00:05]}  Kd8 {[%clk 0:00:17]} 25. Bg5+ {[%clk 0:00:04]}  f6 {[%clk 0:00:15]} 26. Bxf6+ {[%clk 0:00:05]}  Qxf6 {[%clk 0:00:14]} 27. Nxf6 {[%clk 0:00:05]}  Rc7 {[%clk 0:00:14]} 28. Qb8+ {[%clk 0:00:05]}  Ke7 {[%clk 0:00:13]} 29. Qxh8 {[%clk 0:00:06]}  Kd6 {[%clk 0:00:13]} 30. Rg7 {[%clk 0:00:06]}  Ke6 {[%clk 0:00:12]} 31. Qg8+ {[%clk 0:00:06]}  Kf5 {[%clk 0:00:12]} 32. Rxc7 {[%clk 0:00:06]}  exd4 {[%clk 0:00:12]} 33. Qg4+ {[%clk 0:00:07]}  Ke5 {[%clk 0:00:12]} 34. Rxc6 {[%clk 0:00:07]}  d3 {[%clk 0:00:12]} 35. Qe4# {[%clk 0:00:07]} 1-0


[Site "https://www.chess.com"]

[Event "Titled Tuesday Blitz June 28 Late 2022"]
[White "Le Hetet, Nicolas"]
[Black "Isajevsky, Anton"]
[WhiteFideId "634824"]
[BlackFideId "4142500"]
[WhiteElo "2309"]
[BlackElo "2510"]
[Result "1-0"]
[Round "05"]
[TimeControl "180+1"]
[Date "2022.06.29"]
[WhiteClock "0:00:27"]
[BlackClock "0:00:01"]

1. e4 {[%clk 0:02:56]}  d6 {[%clk 0:02:59]} 2. d4 {[%clk 0:02:56]}  Nf6 {[%clk 0:02:59]} 3. Nc3 {[%clk 0:02:56]}  g6 {[%clk 0:03:00]} 4. f4 {[%clk 0:02:56]}  c5 {[%clk 0:02:51]} 5. Nf3 {[%clk 0:02:54]}  cxd4 {[%clk 0:02:46]} 6. Nxd4 {[%clk 0:02:55]}  Bg7 {[%clk 0:02:46]} 7. Be3 {[%clk 0:02:53]}  O-O {[%clk 0:02:44]} 8. Be2 {[%clk 0:02:53]}  e5 {[%clk 0:02:36]} 9. Nb3 {[%clk 0:02:50]}  Nc6 {[%clk 0:02:17]} 10. fxe5 {[%clk 0:02:40]}  Nxe5 {[%clk 0:02:10]} 11. O-O {[%clk 0:02:38]}  Be6 {[%clk 0:02:04]} 12. Nd4 {[%clk 0:02:28]}  Qe7 {[%clk 0:01:08]} 13. Bg5 {[%clk 0:02:19]}  h6 {[%clk 0:01:07]} 14. Bh4 {[%clk 0:02:18]}  Rac8 {[%clk 0:01:00]} 15. Ndb5 {[%clk 0:02:01]}  a6 {[%clk 0:00:55]} 16. Qxd6 {[%clk 0:01:56]}  Qxd6 {[%clk 0:00:18]} 17. Nxd6 {[%clk 0:01:57]}  g5 {[%clk 0:00:18]} 18. Nxc8 {[%clk 0:01:49]}  Rxc8 {[%clk 0:00:19]} 19. Bg3 {[%clk 0:01:43]}  Nfg4 {[%clk 0:00:17]} 20. Bd3 {[%clk 0:01:27]}  b5 {[%clk 0:00:17]} 21. a3 {[%clk 0:01:20]}  Ne3 {[%clk 0:00:16]} 22. Bxe5 {[%clk 0:01:08]}  Bxe5 {[%clk 0:00:16]} 23. Rfc1 {[%clk 0:01:06]}  Bd4 {[%clk 0:00:04]} 24. Kh1 {[%clk 0:01:04]}  Bxc3 {[%clk 0:00:05]} 25. bxc3 {[%clk 0:01:03]}  Rxc3 {[%clk 0:00:06]} 26. a4 {[%clk 0:01:01]}  Bc4 {[%clk 0:00:05]} 27. axb5 {[%clk 0:00:59]}  axb5 {[%clk 0:00:06]} 28. Rab1 {[%clk 0:00:57]}  Bxd3 {[%clk 0:00:05]} 29. cxd3 {[%clk 0:00:58]}  Rxd3 {[%clk 0:00:06]} 30. Rxb5 {[%clk 0:00:56]}  Rd4 {[%clk 0:00:06]} 31. e5 {[%clk 0:00:53]}  Ng4 {[%clk 0:00:06]} 32. h3 {[%clk 0:00:51]}  Nf2+ {[%clk 0:00:05]} 33. Kg1 {[%clk 0:00:51]}  Nd3 {[%clk 0:00:05]} 34. Rd1 {[%clk 0:00:49]}  Rd7 {[%clk 0:00:02]} 35. Rb8+ {[%clk 0:00:31]}  Kg7 {[%clk 0:00:02]} 36. e6 {[%clk 0:00:27]}  fxe6 {[%clk 0:00:03]} 37. Rb3 {[%clk 0:00:27]}  Nc5 {[%clk 0:00:01]} 38. Rxd7+ {[%clk 0:00:26]}  Nxd7 {[%clk 0:00:01]} 39. Rb7 {[%clk 0:00:27]} 1-0


[Site "https://www.chess.com"]

[Event "Titled Tuesday Blitz June 28 Late 2022"]
[White "Maghsoodloo, Parham"]
[Black "Laurusas, Tomas"]
[WhiteFideId "12539929"]
[BlackFideId "12803731"]
[WhiteElo "2607"]
[BlackElo "2442"]
[Result "1/2-1/2"]
[Round "05"]
[TimeControl "180+1"]
[Date "2022.06.28"]
[WhiteClock "0:00:05"]
[BlackClock "0:00:07"]

1. d4 {[%clk 0:03:00]}  d5 {[%clk 0:02:55]} 2. c4 {[%clk 0:03:01]}  c6 {[%clk 0:02:54]} 3. Nf3 {[%clk 0:03:01]}  Nf6 {[%clk 0:02:54]} 4. e3 {[%clk 0:03:01]}  Bf5 {[%clk 0:02:53]} 5. Nc3 {[%clk 0:03:01]}  e6 {[%clk 0:02:54]} 6. Nh4 {[%clk 0:03:01]}  Bg6 {[%clk 0:02:54]} 7. Qb3 {[%clk 0:03:00]}  Qb6 {[%clk 0:02:51]} 8. Nxg6 {[%clk 0:02:59]}  hxg6 {[%clk 0:02:50]} 9. Bd2 {[%clk 0:02:59]}  Nbd7 {[%clk 0:02:50]} 10. O-O-O {[%clk 0:02:46]}  Be7 {[%clk 0:02:47]} 11. f3 {[%clk 0:02:43]}  Qc7 {[%clk 0:02:37]} 12. g4 {[%clk 0:02:29]}  g5 {[%clk 0:02:28]} 13. Kb1 {[%clk 0:02:24]}  O-O-O {[%clk 0:02:23]} 14. cxd5 {[%clk 0:02:10]}  Nxd5 {[%clk 0:02:21]} 15. h3 {[%clk 0:01:52]}  Kb8 {[%clk 0:02:18]} 16. Ne4 {[%clk 0:01:40]}  e5 {[%clk 0:02:04]} 17. Bc4 {[%clk 0:01:34]}  exd4 {[%clk 0:01:49]} 18. exd4 {[%clk 0:01:32]}  N7b6 {[%clk 0:01:39]} 19. Nxg5 {[%clk 0:01:28]}  Nxc4 {[%clk 0:01:33]} 20. Qxc4 {[%clk 0:01:28]}  Bxg5 {[%clk 0:01:31]} 21. Bxg5 {[%clk 0:01:28]}  f6 {[%clk 0:01:28]} 22. Bc1 {[%clk 0:01:28]}  Qg3 {[%clk 0:01:21]} 23. Qf1 {[%clk 0:01:26]}  g5 {[%clk 0:01:17]} 24. Rd3 {[%clk 0:01:22]}  Qd6 {[%clk 0:00:40]} 25. a3 {[%clk 0:01:16]}  Rh7 {[%clk 0:00:34]} 26. Bd2 {[%clk 0:01:16]}  Re8 {[%clk 0:00:32]} 27. Rb3 {[%clk 0:01:10]}  Qc7 {[%clk 0:00:25]} 28. Qd3 {[%clk 0:01:05]}  Rhe7 {[%clk 0:00:25]} 29. h4 {[%clk 0:00:57]}  gxh4 {[%clk 0:00:25]} 30. Rxh4 {[%clk 0:00:58]}  Ka8 {[%clk 0:00:24]} 31. Ka2 {[%clk 0:00:51]}  a6 {[%clk 0:00:21]} 32. Rh5 {[%clk 0:00:38]}  Re2 {[%clk 0:00:20]} 33. Qg6 {[%clk 0:00:26]}  Rd8 {[%clk 0:00:18]} 34. Rh7 {[%clk 0:00:21]}  Re7 {[%clk 0:00:18]} 35. Rxe7 {[%clk 0:00:19]}  Qxe7 {[%clk 0:00:19]} 36. Qe4 {[%clk 0:00:18]}  Qd7 {[%clk 0:00:19]} 37. Qc2 {[%clk 0:00:08]}  Qe6 {[%clk 0:00:18]} 38. Qc4 {[%clk 0:00:07]}  Re8 {[%clk 0:00:18]} 39. a4 {[%clk 0:00:04]}  Qd7 {[%clk 0:00:18]} 40. a5 {[%clk 0:00:05]}  Re7 {[%clk 0:00:18]} 41. Rd3 {[%clk 0:00:05]}  Qe6 {[%clk 0:00:17]} 42. Kb3 {[%clk 0:00:05]}  Re8 {[%clk 0:00:17]} 43. f4 {[%clk 0:00:05]}  Qe2 {[%clk 0:00:17]} 44. g5 {[%clk 0:00:06]}  fxg5 {[%clk 0:00:16]} 45. fxg5 {[%clk 0:00:07]}  Qd1+ {[%clk 0:00:16]} 46. Qc2 {[%clk 0:00:06]}  Qg4 {[%clk 0:00:15]} 47. Bc1 {[%clk 0:00:05]}  Re2 {[%clk 0:00:15]} 48. Qc4 {[%clk 0:00:06]}  Re4 {[%clk 0:00:13]} 49. Ka3 {[%clk 0:00:05]}  Qg1 {[%clk 0:00:12]} 50. Qc2 {[%clk 0:00:05]}  Re1 {[%clk 0:00:11]} 51. Bd2 {[%clk 0:00:04]}  Ra1+ {[%clk 0:00:11]} 52. Kb3 {[%clk 0:00:05]}  Qg4 {[%clk 0:00:10]} 53. Qc4 {[%clk 0:00:02]}  Qd1+ {[%clk 0:00:09]} 54. Qc2 {[%clk 0:00:03]}  Qg4 {[%clk 0:00:09]} 55. Qc4 {[%clk 0:00:03]}  Rd1 {[%clk 0:00:06]} 56. Qc2 {[%clk 0:00:02]}  Rf1 {[%clk 0:00:06]} 57. Bc1 {[%clk 0:00:02]}  Rg1 {[%clk 0:00:06]} 58. Bd2 {[%clk 0:00:02]}  Rg2 {[%clk 0:00:06]} 59. Ka3 {[%clk 0:00:02]}  Qe2 {[%clk 0:00:06]} 60. Qc5 {[%clk 0:00:01]}  Qxd3+ {[%clk 0:00:06]} 61. b3 {[%clk 0:00:01]}  Qxd2 {[%clk 0:00:04]} 62. Qf8+ {[%clk 0:00:02]}  Ka7 {[%clk 0:00:05]} 63. Qc5+ {[%clk 0:00:02]}  Kb8 {[%clk 0:00:05]} 64. Qf8+ {[%clk 0:00:03]}  Kc7 {[%clk 0:00:06]} 65. Qf7+ {[%clk 0:00:03]}  Kc8 {[%clk 0:00:06]} 66. Qe8+ {[%clk 0:00:03]}  Kc7 {[%clk 0:00:06]} 67. Qf7+ {[%clk 0:00:04]}  Kd8 {[%clk 0:00:07]} 68. Qf8+ {[%clk 0:00:04]}  Kd7 {[%clk 0:00:08]} 69. Qf5+ {[%clk 0:00:05]}  Ke7 {[%clk 0:00:08]} 70. Qh7+ {[%clk 0:00:04]}  Kd6 {[%clk 0:00:07]} 71. Qg6+ {[%clk 0:00:05]}  Kc7 {[%clk 0:00:07]} 72. Qf7+ {[%clk 0:00:05]} 1/2-1/2


[Site "https://www.chess.com"]